bitfinex/quotes_SOLUSD_20240616
["timestamp","ask_amount","ask_price","bid_price","bid_amount"]
[1718578350493,5.96,150.14,150.12,2.4645]
[1718578350678,5.96,150.13,150.12,2.4645]
[1718578350864,5.96,150.13,150.11,2.4647]
[1718578351064,5.96,150.12,150.11,2.4647]
[1718578351502,14.7853,150.15,150.12,2.4645]
[1718578351800,7.3928,150.15,150.12,2.4646]
[1718578352002,2.4643,150.15,150.12,2.4646]
[1718578352504,2.4643,150.15,150.05,0.17]
[1718578352505,7.3921,150.16,150.13,2.4644]
[1718578352892,2.4642,150.15,150.13,2.4644]
[1718578353371,29.3832,150.17,150.14,2.4643]
[1718578353570,20.0,150.16,150.15,2.4642]
[1718578353870,20.0,150.16,150.05,0.17]
[1718578353871,21.9914,150.17,150.14,2.4642]
[1718578354072,24.4553,150.17,150.14,2.4642]
[1718578355385,21.9914,150.17,150.15,2.4641]
[1718578356988,24.4552,150.17,150.15,2.4641]
[1718578357372,24.4552,150.17,150.14,2.4642]
[1718578357895,2.4636,150.19,150.07,120.17]
[1718578358079,2.4636,150.19,150.16,2.4639]
[1718578358080,22.4636,150.19,150.16,2.4639]
[1718578358491,22.1712,150.2,150.18,2.4637]
[1718578358492,6.9487308,150.2,150.18,2.4637]
[1718578358683,14.3390308,150.2,150.17,2.4637]
[1718578358884,7.3903,150.2,150.17,2.4637]
[1718578359076,2.4635,150.2,150.18,2.4636]
[1718578359283,37.74496383,150.21,150.18,2.4636]
[1718578359675,2.4633,150.2,150.18,2.4636]
[1718578359877,54.98756383,150.21,150.18,2.4636]
[1718578360179,7.3907,150.19,150.16,2.4639]
[1718578360626,14.7813,150.19,150.16,2.4639]
[1718578361115,2.4637,150.18,150.16,2.4639]
[1718578361401,2.4636,150.19,150.16,2.4639]
[1718578361609,2.4637,150.18,150.15,2.464]
[1718578361787,14.7823,150.18,150.09,0.17]
[1718578361986,22.1735,150.18,150.15,2.4641]
[1718578362189,2.4639,150.17,150.15,2.4641]
[1718578362376,7.3914,150.18,150.15,2.4641]
[1718578362587,2.4638,150.18,150.09,0.17]
[1718578362777,7.3908,150.19,150.16,2.4639]
[1718578363191,2.4636,150.19,150.16,2.4639]
[1718578363887,2.4636,150.19,150.16,2.4638]
[1718578364091,35.28176383,150.21,150.09,0.17]
[1718578364287,35.28176383,150.21,150.18,2.4636]
[1718578364288,45.13466383,150.21,150.18,2.4636]
[1718578364887,2.4633,150.2,150.18,2.4636]
[1718578365090,2.4633,150.2,150.17,2.4637]
[1718578365707,7.39,150.2,150.17,2.4637]
[1718578366190,2.4635,150.19,150.16,2.4639]
[1718578366925,7.3906,150.19,150.16,2.4639]
[1718578367100,24.634,150.2,150.17,2.4638]
[1718578367620,2.4635,150.19,150.16,2.4639]
[1718578367802,22.1705,150.2,150.17,2.4638]
[1718578367803,24.634,150.2,150.17,2.4638]
[1718578368007,7.3904,150.2,150.17,2.4638]
[1718578368349,14.7805,150.2,150.17,2.4638]
[1718578368804,2.4635,150.19,150.17,2.4638]
[1718578369005,7.3904,150.2,150.17,2.4638]
[1718578369205,30.35516383,150.21,150.19,2.4635]
[1718578369408,37.74476383,150.21,150.18,2.4635]
[1718578369631,25.8697479,150.21,150.19,2.4635]
[1718578369934,30.7961479,150.21,150.18,2.4635]
[1718578370805,25.8697479,150.21,150.19,2.4635]
[1718578371527,5.96,150.2,150.19,2.4635]
[1718578372429,5.96,150.2,150.18,2.4635]
[1718578372730,5.96,150.19,150.18,2.4635]
[1718578373025,25.8697479,150.21,150.19,2.4635]
[1718578373336,5.96,150.2,150.19,2.4635]
[1718578375735,23.4065479,150.21,150.13,5.96]
[1718578376041,23.4065479,150.21,150.2,2.4633]
[1718578376338,0.8465479,150.21,150.2,2.4633]
[1718578384448,17.6419,150.2,150.1,0.4258]
[1718578384626,5.96,150.17,150.12,5.96]
[1718578385543,5.96,150.17,150.16,2.464]
[1718578386743,5.96,150.17,150.1,0.4258]
[1718578386924,5.96,150.16,150.15,2.464]
[1718578388037,6.6006,150.19,150.18,2.4637]
[1718578388244,12.5606,150.19,150.18,2.4637]
[1718578389027,6.6006,150.19,150.18,2.4637]
[1718578389235,12.5606,150.19,150.18,2.4637]
[1718578390447,12.5606,150.19,150.12,5.96]
[1718578390654,5.96,150.18,150.17,2.4637]
[1718578391631,12.5606,150.19,150.18,2.4637]
[1718578392353,15.1785,150.2,150.19,2.4635]
[1718578392529,0.8465479,150.21,150.2,2.4633]
[1718578392847,6.8065479,150.21,150.2,2.4633]
[1718578395846,0.8465479,150.21,150.2,2.4633]
[1718578398139,6.8065479,150.21,150.12,0.17]
[1718578398346,5.96,150.2,150.19,2.4634]
[1718578400057,5.96,150.2,150.19,2.4635]
[1718578400840,0.8465479,150.21,150.2,2.4633]
[1718578401041,6.8065479,150.21,150.2,2.4633]
[1718578401961,9.2698479,150.21,150.11,0.17]
[1718578402159,0.8465479,150.21,150.14,5.96]
[1718578402357,5.96,150.2,150.19,2.4634]
[1718578409071,6.8065479,150.21,150.2,2.4633]
[1718578409669,0.8465479,150.21,150.2,2.4633]
[1718578420593,0.8465479,150.21,150.2,9.1033]
[1718578428313,4.79e-05,150.21,150.2,9.1033]
[1718578428682,4.79e-05,150.21,150.2,29.1033]
[1718578429485,4.79e-05,150.21,150.2,49.1033]
[1718578430196,4.79e-05,150.21,150.2,29.1033]
[1718578430503,4.79e-05,150.21,150.2,9.1033]
[1718578431391,4.79e-05,150.21,150.2,29.1033]
[1718578431587,4.79e-05,150.21,150.2,9.1033]
[1718578435124,4.79e-05,150.21,150.2,29.1033]
[1718578435513,4.79e-05,150.21,150.2,149.1033]
[1718578443709,4.79e-05,150.21,150.2,2.4633]
[1718578444313,4.79e-05,150.21,150.2,8.4233]
[1718578445628,4.79e-05,150.21,150.2,8.5933]
[1718578446832,4.79e-05,150.21,150.2,8.7633]
[1718578447125,4.79e-05,150.21,150.2,3.1433]
[1718578447326,4.79e-05,150.21,150.2,9.1033]
[1718578450038,4.79e-05,150.21,150.2,2.8033]
[1718578450207,4.79e-05,150.21,150.2,8.5933]
[1718578450531,4.79e-05,150.21,150.2,2.4633]
[1718578451108,4.79e-05,150.21,150.2,8.4233]
[1718578451898,4.79e-05,150.21,150.2,8.5933]
[1718578452402,4.79e-05,150.21,150.2,8.9333]
[1718578452619,4.79e-05,150.21,150.2,9.1033]
[1718578453909,4.79e-05,150.21,150.2,29.1033]
[1718578454110,4.79e-05,150.21,150.2,129.1033]
[1718578454515,4.79e-05,150.21,150.2,49.1033]
[1718578460936,4.79e-05,150.21,150.2,29.1033]
[1718578464021,4.79e-05,150.21,150.2,30.28228064]
[1718578466151,2.4615,150.32,150.2,30.28228064]
[1718578466152,15.9456479,150.36,150.27,100.0]
[1718578466444,15.9456479,150.36,150.35,5.96]
[1718578466811,15.9456479,150.36,150.34,5.96]
[1718578467336,0.8465479,150.36,150.35,6.6407345]
[1718578467660,0.8465479,150.36,150.35,6.64]
[1718578467810,15.0263,150.4,150.36,0.17]
[1718578468011,6.0632,150.41,150.39,5.96]
[1718578468259,15.0263,150.44,150.41,0.17]
[1718578468512,15.0263,150.44,150.42,5.96]
[1718578469537,15.0263,150.44,150.4,0.17]
[1718578469851,20.9863,150.44,150.34,0.17]
[1718578470021,20.9863,150.44,150.39,6.13]
[1718578470022,15.0263,150.44,150.39,6.13]
[1718578470215,15.0263,150.44,150.42,5.96]
[1718578470624,15.0263,150.44,150.43,5.96]
[1718578471415,15.0263,150.44,150.42,5.96]
[1718578471818,15.0263,150.44,150.34,163.7576548]
[1718578472142,15.0263,150.44,150.39,5.96]
[1718578472530,15.0263,150.44,150.4,5.96]
[1718578473147,15.0263,150.44,150.41,5.96]
[1718578473339,15.0263,150.44,150.42,5.96]
[1718578475028,12.0232,150.47,150.43,6.3]
[1718578475029,6.0632,150.47,150.43,6.3]
[1718578475235,6.0632,150.47,150.46,5.96]
[1718578475842,6.0632,150.47,150.44,1.49909101]
[1718578476150,6.0632,150.47,150.45,6.13]
[1718578476326,15.1339,150.48,150.46,7.62891433]
[1718578476518,15.1339,150.48,150.47,5.96]
[1718578477551,7.4085479,150.51,150.47,6.3]
[1718578477729,7.4085479,150.51,150.48,5.96]
[1718578478132,7.4085479,150.51,150.47,0.34]
[1718578478339,7.4085479,150.51,150.47,5.96]
[1718578478521,7.4085479,150.51,150.46,5.96]
[1718578478723,7.4085479,150.51,150.45,5.96]
[1718578478932,13.3685479,150.51,150.45,5.96]
[1718578479640,7.4085479,150.51,150.46,5.96]
[1718578479844,13.3685479,150.51,150.46,5.96]
[1718578480048,7.4085479,150.51,150.47,0.51]
[1718578480340,7.4085479,150.51,150.47,6.13]
[1718578480546,7.4085479,150.51,150.46,5.96]
[1718578480927,7.4085479,150.51,150.47,6.3]
[1718578481126,7.4085479,150.51,150.47,6.13]
[1718578481327,7.4085479,150.51,150.46,0.34]
[1718578481518,7.4085479,150.51,150.45,6.3]
[1718578481519,13.3685479,150.51,150.45,6.3]
[1718578482458,13.3685479,150.51,150.45,0.34]
[1718578482763,13.3685479,150.51,150.46,5.96]
[1718578484025,13.3685479,150.51,150.45,5.96]
[1718578484222,13.3685479,150.51,150.4,43.84]
[1718578484428,5.96,150.5,150.4,43.84]
[1718578484636,5.96,150.5,150.45,5.96]
[1718578485735,0.8465479,150.51,150.45,0.17]
[1718578485936,0.8465479,150.51,150.5,5.96]
[1718578486453,0.8465479,150.51,150.48,5.96]
[1718578488042,0.8465479,150.51,150.47,5.96]
[1718578489843,0.8465479,150.51,150.48,5.96]
[1718578490743,0.8465479,150.51,150.47,5.96]
[1718578491344,0.8465479,150.51,150.45,0.68]
[1718578491561,0.8465479,150.51,150.47,5.96]
[1718578492238,0.8465479,150.51,150.48,5.96]
[1718578492746,0.8465479,150.51,150.45,0.68]
[1718578492954,0.8465479,150.51,150.48,5.96]
[1718578493735,0.8465479,150.51,150.45,0.68]
[1718578493736,0.8465479,150.51,150.49,5.96]
[1718578494240,0.8465479,150.51,150.5,6.13]
[1718578494468,0.8465479,150.51,150.5,6.64]
[1718578496247,0.8465479,150.51,150.5,126.64]
[1718578496454,0.8465479,150.51,150.5,146.64]
[1718578497341,22.9637,150.61,150.51,0.17]
[1718578497638,22.9637,150.61,150.58,5.96]
[1718578498851,22.9637,150.61,150.57,5.96]
[1718578500853,22.9637,150.61,150.56,0.51]
[1718578501155,22.9637,150.61,150.57,5.96]
[1718578501667,22.9637,150.61,150.58,5.96]
[1718578501972,22.9637,150.61,150.6,2.4568]
[1718578502276,31.3803,150.61,150.51,20.0]
[1718578502571,31.3803,150.61,150.49,34.03304283]
[1718578502572,31.3804,150.61,150.59,2.4569]
[1718578502784,28.9237,150.61,150.54,5.96]
[1718578503067,31.3804,150.61,150.58,2.457]
[1718578503241,28.9237,150.61,150.59,2.4569]
[1718578503746,31.3803,150.61,150.59,2.4569]
[1718578503952,22.9637,150.61,150.6,2.4568]
[1718578504540,22.9637,150.61,150.59,2.4569]
[1718578504761,22.9637,150.61,150.54,5.96]
[1718578505061,22.9637,150.61,150.59,2.4568]
[1718578505444,22.9637,150.61,150.44,100.0]
[1718578505445,4.9151,150.56,150.44,100.0]
[1718578505644,5.96,150.54,150.44,100.0]
[1718578505970,5.96,150.54,150.48,5.96]
[1718578505971,16.4356,150.53,150.48,5.96]
[1718578506540,16.4356,150.53,150.49,5.96]
[1718578507447,16.4356,150.53,150.44,137.81]
[1718578507670,16.4356,150.53,150.44,143.25976435]
[1718578508336,16.4356,150.53,150.45,0.34]
[1718578509470,16.4356,150.53,150.46,0.34]
[1718578509643,16.4356,150.53,150.47,0.34]
[1718578509847,16.4356,150.53,150.42,27.3906]
[1718578509848,2.4581,150.52,150.4,125.67237868]
[1718578510050,16.4356,150.53,150.4,145.67237868]
[1718578510573,16.4356,150.53,150.4,150.97448184]
[1718578511071,16.4356,150.53,150.41,20.0]
[1718578511251,18.8935,150.53,150.42,0.17]
[1718578511459,16.4356,150.53,150.42,0.68]
[1718578512673,7.3745,150.52,150.42,0.68]
[1718578512873,2.4581,150.52,150.42,0.68]
[1718578513061,18.8937,150.53,150.42,0.68]
[1718578514069,23.8097,150.53,150.42,0.68]
[1718578515254,16.4356,150.53,150.42,0.68]
[1718578515971,16.4356,150.53,150.36,7.86237868]
[1718578515972,22.1265,150.5,150.36,125.67237868]
[1718578516176,22.1265,150.5,150.36,130.89266851]
[1718578516177,2.4587,150.49,150.36,130.89266851]
[1718578516581,6.3614,150.49,150.36,130.89266851]
[1718578516878,6.3614,150.49,150.37,20.0]
[1718578517656,6.3614,150.49,150.38,0.34]
[1718578517849,6.3614,150.49,150.39,0.51]
[1718578518047,6.3614,150.49,150.4,0.34]
[1718578518368,6.3614,150.49,150.41,0.17]
[1718578520081,6.3614,150.49,150.41,0.34]
[1718578520259,6.3614,150.49,150.42,0.34]
[1718578521303,6.3614,150.49,150.42,38.15]
[1718578521584,16.38,150.51,150.46,0.17]
[1718578521788,16.38,150.51,150.46,0.34]
[1718578522078,16.38,150.51,150.47,0.34]
[1718578523077,16.38,150.51,150.47,0.17]
[1718578523300,16.38,150.51,150.46,0.34]
[1718578525196,16.38,150.51,150.46,0.17]
[1718578525496,16.38,150.51,150.45,0.34]
[1718578525900,16.38,150.51,150.46,0.17]
[1718578526087,16.38,150.51,150.46,0.34]
[1718578526276,16.38,150.51,150.46,38.15]
[1718578526469,16.38,150.51,150.47,0.34]
[1718578526664,16.38,150.51,150.46,0.34]
[1718578527073,16.38,150.51,150.47,0.34]
[1718578527269,16.38,150.51,150.48,0.17]
[1718578527477,16.38,150.51,150.48,0.34]
[1718578527673,6.9376569,150.6,150.5,20.17]
[1718578527870,24.3952,150.63,150.52,0.17]
[1718578527871,26.8517,150.63,150.52,0.17]
[1718578528196,21.9389,150.63,150.52,1.4981403]
[1718578528375,21.9389,150.63,150.53,0.51]
[1718578528568,24.3953,150.63,150.53,0.51]
[1718578528767,2.4565,150.62,150.53,0.51]
[1718578528996,2.4565,150.62,150.53,0.17]
[1718578529170,7.3695,150.62,150.53,0.17]
[1718578529365,26.8518,150.63,150.53,0.17]
[1718578529570,2.4565,150.62,150.53,0.17]
[1718578529772,2.4565,150.62,150.53,30.17]
[1718578530270,7.3695,150.62,150.53,30.17]
[1718578531087,7.3701,150.61,150.53,30.0]
[1718578531294,2.4567,150.61,150.53,30.0]
[1718578532200,2.4567,150.61,150.49,0.17]
[1718578532379,2.4567,150.61,150.51,0.17]
[1718578532583,2.4567,150.61,150.51,0.68]
[1718578533071,39.9191,150.62,150.51,0.68]
[1718578533393,32.5458,150.6,150.5,30.0]
[1718578533603,2.457,150.59,150.5,30.0]
[1718578533776,44.8304,150.6,150.46,17.81]
[1718578533777,22.7184,150.6,150.46,17.81]
[1718578533978,22.7184,150.6,150.44,8.36649281]
[1718578533979,16.0998,150.55,150.44,8.36649281]
[1718578534407,16.0998,150.55,150.47,30.0]
[1718578535379,16.0998,150.55,150.43,30.0]
[1718578535578,16.0998,150.55,150.44,0.68]
[1718578535875,16.0998,150.55,150.44,0.34]
[1718578536403,16.0998,150.55,150.44,30.34]
[1718578537178,18.5574,150.55,150.44,30.17]
[1718578537378,25.0575,150.53,150.44,30.0]
[1718578537600,30.1731,150.52,150.44,30.0]
[1718578537809,30.1731,150.52,150.38,17.81]
[1718578537810,2.4583,150.51,150.38,17.81]
[1718578538011,42.4641,150.52,150.4,30.0]
[1718578538012,27.7147,150.52,150.4,30.0]
[1718578538199,2.4583,150.51,150.4,30.0]
[1718578538402,22.5994,150.5,150.4,30.0]
[1718578538573,20.51,150.49,150.4,30.0]
[1718578538777,22.1296,150.44,150.36,258.8]
[1718578539116,22.1296,150.44,150.34,5.3528841]
[1718578539412,22.1296,150.44,150.33,20.0]
[1718578540588,22.1296,150.44,150.32,37.81]
[1718578540829,22.1296,150.44,150.32,17.81]
[1718578541110,24.589,150.44,150.32,17.81]
[1718578541394,22.1296,150.44,150.32,17.81]
[1718578541615,24.5891,150.44,150.32,17.81]
[1718578541770,22.1296,150.44,150.32,37.81]
[1718578543092,22.1296,150.44,150.33,0.51]
[1718578543293,22.1296,150.44,150.34,0.34]
[1718578543504,22.1296,150.44,150.35,0.34]
[1718578543686,22.1296,150.44,150.36,0.17]
[1718578543894,2.4596,150.43,150.36,0.17]
[1718578544074,46.7245,150.44,150.36,0.17]
[1718578544274,29.5082,150.44,150.36,0.17]
[1718578545501,2.4596,150.43,150.35,0.34]
[1718578545800,2.4596,150.43,150.35,0.17]
[1718578545985,12.2981,150.43,150.34,0.17]
[1718578546316,12.2981,150.43,150.31,36.22887149]
[1718578546317,7.3789,150.43,150.33,0.17]
[1718578546488,22.1296,150.44,150.32,0.17]
[1718578546695,24.589,150.44,150.32,0.17]
[1718578546989,29.5079,150.44,150.32,0.17]
[1718578547208,22.1296,150.44,150.32,0.34]
[1718578547413,22.1296,150.44,150.34,0.17]
[1718578547631,22.1296,150.44,150.34,0.34]
[1718578547829,22.1296,150.44,150.35,0.34]
[1718578548029,22.1296,150.44,150.36,0.17]
[1718578548338,22.1296,150.44,150.36,0.34]
[1718578548501,22.1296,150.44,150.38,0.17]
[1718578548835,22.1296,150.44,150.37,0.34]
[1718578550100,22.1296,150.44,150.38,0.17]
[1718578550297,22.1296,150.44,150.38,0.34]
[1718578550528,22.1296,150.44,150.39,0.17]
[1718578551830,22.1296,150.44,150.38,0.17]
[1718578552128,22.1296,150.44,150.37,0.17]
[1718578552421,34.4272,150.44,150.33,17.81]
[1718578552604,2.4597,150.42,150.3,23.24740009]
[1718578552800,15.6885,150.41,150.3,23.24740009]
[1718578552995,15.6885,150.41,150.3,43.24740009]
[1718578553423,15.6885,150.41,150.29,20.0]
[1718578553619,15.6885,150.41,150.31,7.86237868]
[1718578553620,6.1573,150.4,150.31,7.86237868]
[1718578553805,6.1573,150.4,150.28,117.81]
[1718578554002,8.6174,150.4,150.27,41.64736222]
[1718578554401,6.1573,150.4,150.27,41.64736222]
[1718578554602,8.6174,150.4,150.27,41.64736222]
[1718578554803,13.5376,150.4,150.27,41.64736222]
[1718578555429,13.5376,150.4,150.28,0.17]
[1718578555727,6.1573,150.4,150.29,20.0]
[1718578555901,6.1573,150.4,150.3,0.68]
[1718578556298,6.1573,150.4,150.33,0.17]
[1718578556522,6.1573,150.4,150.33,0.68]
[1718578564154,6.1573,150.4,150.33,2.00827867]
[1718578565214,6.1573,150.4,150.28,120.0]
[1718578565417,15.5338,150.39,150.29,30.0]
[1718578566427,15.5338,150.39,150.28,20.0]
[1718578566815,15.5338,150.39,150.29,0.34]
[1718578567446,15.5338,150.39,150.3,0.34]
[1718578567743,15.5338,150.39,150.31,0.34]
[1718578568035,15.5338,150.39,150.32,0.34]
[1718578568612,15.5338,150.39,150.33,0.17]
[1718578568808,15.5338,150.39,150.33,120.34]
[1718578569011,15.5338,150.39,150.35,0.17]
[1718578569443,15.5338,150.39,150.35,0.34]
[1718578569753,15.5338,150.39,150.37,0.17]
[1718578569958,16.0848,150.47,150.37,1.66135698]
[1718578570107,16.0848,150.47,150.39,0.17]
[1718578570312,16.0848,150.47,150.39,1.66118125]
[1718578570656,16.0848,150.47,150.4,0.34]
[1718578572040,16.0848,150.47,150.4,0.17]
[1718578572242,18.5437,150.47,150.4,0.17]
[1718578572532,6.1759,150.46,150.35,31.61207758]
[1718578572732,6.1759,150.46,150.34,20.0]
[1718578572733,16.0679,150.45,150.36,0.68]
[1718578574023,16.0679,150.45,150.36,0.51]
[1718578574343,15.1619,150.43,150.32,20.0]
[1718578574520,15.1619,150.43,150.33,17.81]
[1718578575321,15.1619,150.43,150.34,0.17]
[1718578575520,15.1619,150.43,150.34,0.68]
[1718578575841,15.1619,150.43,150.34,1.86847587]
[1718578576239,15.1619,150.43,150.34,0.68]
[1718578577533,15.1619,150.43,150.33,17.81]
[1718578578942,15.1619,150.43,150.34,0.68]
[1718578579526,15.1619,150.43,150.34,0.51]
[1718578580858,15.1619,150.43,150.35,0.34]
[1718578581140,15.296,150.41,150.32,17.81]
[1718578581346,6.0433,150.4,150.3,7.86237868]
[1718578581520,15.296,150.39,150.27,108.36649281]
[1718578581728,15.296,150.39,150.28,37.81]
[1718578582320,15.296,150.39,150.28,57.81]
[1718578582547,15.296,150.39,150.3,20.0]
[1718578582725,15.296,150.39,150.31,0.68]
[1718578585059,15.5633,150.37,150.28,8.36649281]
[1718578585239,15.5633,150.37,150.26,20.0]
[1718578585649,15.5633,150.37,150.26,28.36649281]
[1718578586051,15.5633,150.37,150.26,37.95056537]
[1718578586232,15.5633,150.37,150.27,0.17]
[1718578586430,15.5633,150.37,150.29,20.17]
[1718578586730,15.5633,150.37,150.31,0.17]
[1718578597465,15.5633,150.37,150.35,5.95]
[1718578600368,15.5633,150.37,150.31,0.17]
[1718578600858,15.5633,150.37,150.33,5.95]
[1718578601172,15.5633,150.37,150.32,5.95]
[1718578601545,15.5633,150.37,150.33,5.95]
[1718578601962,15.5633,150.37,150.28,33.78237868]
[1718578602570,15.5633,150.37,150.33,5.95]
[1718578602968,15.5633,150.37,150.32,5.95]
[1718578603846,15.5633,150.37,150.31,0.34]
[1718578604060,6.1116,150.36,150.31,5.95]
[1718578606051,6.1116,150.36,150.32,5.95]
[1718578606964,6.1116,150.36,150.33,5.95]
[1718578607164,6.1116,150.36,150.34,5.95]
[1718578609151,6.1116,150.36,150.33,5.95]
[1718578612659,6.1116,150.36,150.3,1.5002988]
[1718578612980,6.1116,150.36,150.33,5.95]
[1718578613564,6.1116,150.36,150.29,0.17]
[1718578613774,6.1116,150.36,150.31,5.95]
[1718578613775,12.0616,150.36,150.31,5.95]
[1718578615085,6.1116,150.36,150.31,5.95]
[1718578616178,6.1116,150.36,150.32,5.95]
[1718578616586,6.1116,150.36,150.29,0.17]
[1718578616770,6.1116,150.36,150.31,5.95]
[1718578617087,12.0616,150.36,150.3,5.95]
[1718578617685,6.1116,150.36,150.31,5.95]
[1718578617981,12.0616,150.36,150.31,5.95]
[1718578618564,12.0616,150.36,150.28,0.34]
[1718578618565,8.5723,150.36,150.28,0.17]
[1718578618761,5.95,150.35,150.28,0.17]
[1718578618968,5.95,150.35,150.29,5.95]
[1718578619275,16.6491,150.34,150.29,5.95]
[1718578619476,22.5991,150.34,150.29,5.95]
[1718578619783,16.6491,150.34,150.3,5.95]
[1718578620284,16.6491,150.34,150.26,0.17]
[1718578620491,16.6491,150.34,150.3,5.95]
[1718578621464,16.6491,150.34,150.29,5.95]
[1718578622208,16.6491,150.34,150.3,5.95]
[1718578624204,16.6491,150.34,150.29,5.95]
[1718578624713,25.0602,150.34,150.26,0.68]
[1718578624883,16.6491,150.34,150.28,5.95]
[1718578625283,22.5991,150.34,150.28,5.95]
[1718578625780,16.6491,150.34,150.3,5.95]
[1718578626682,16.6491,150.34,150.32,5.95]
[1718578627306,16.6491,150.34,150.33,5.95]
[1718578629603,6.1116,150.36,150.27,125.90267221]
[1718578629900,6.1116,150.36,150.33,5.95]
[1718578630489,6.1116,150.36,150.32,5.95]
[1718578630689,6.1116,150.36,150.31,5.95]
[1718578630690,12.0616,150.36,150.31,5.95]
[1718578631284,6.1116,150.36,150.31,5.95]
[1718578631798,6.1116,150.36,150.32,5.95]
[1718578632997,6.1116,150.36,150.33,5.95]
[1718578633312,0.07943139,150.39,150.33,5.95]
[1718578633623,5.95,150.39,150.37,7.3815]
[1718578635306,8.4102,150.39,150.37,7.3815]
[1718578635490,8.4102,150.39,150.37,2.4604]
[1718578636008,2.4602,150.39,150.37,2.4604]
[1718578636222,5.95,150.38,150.37,2.4604]
[1718578636415,31.0152,150.38,150.36,7.3819]
[1718578636727,13.332,150.37,150.34,2.4609]
[1718578636900,5.95,150.36,150.35,2.4609]
[1718578637223,5.95,150.36,150.34,24.6104]
[1718578637400,4.9217,150.36,150.33,2.4611]
[1718578637601,5.95,150.34,150.33,2.4611]
[1718578637813,5.95,150.34,150.33,7.3836]
[1718578638107,8.4109,150.35,150.33,7.3835]
[1718578638509,8.4109,150.35,150.33,2.461]
[1718578639303,21.7463,150.34,150.32,24.6133]
[1718578639617,21.7463,150.34,150.33,2.4612]
[1718578640012,21.7463,150.34,150.32,22.1521]
[1718578640213,21.7463,150.34,150.32,24.6133]
[1718578640412,5.95,150.33,150.32,24.6133]
[1718578641519,21.7463,150.34,150.33,2.4612]
[1718578641920,21.7463,150.34,150.32,22.1521]
[1718578642127,21.7463,150.34,150.33,2.4612]
[1718578645917,21.7463,150.34,150.33,7.3837]
[1718578646112,15.7963,150.34,150.33,24.6124]
[1718578648728,8.4106,150.37,150.35,2.4608]
[1718578649019,13.3318,150.37,150.35,2.4609]
[1718578649203,20.7136,150.37,150.34,7.3828]
[1718578649626,5.95,150.36,150.34,7.3828]
[1718578649921,29.3118,150.38,150.35,12.3045]
[1718578650102,29.3118,150.38,150.37,7.3816]
[1718578650103,21.9303,150.38,150.37,7.3816]
[1718578650301,21.9303,150.38,150.37,24.6056]
[1718578650519,21.9303,150.38,150.37,7.3816]
[1718578650818,21.9303,150.38,150.36,17.2246]
[1718578650819,21.9303,150.38,150.35,7.3827]
[1718578650997,15.6741,150.48,150.36,20.14]
[1718578651200,15.6741,150.48,150.47,2.4589]
[1718578651409,26.8865,150.53,150.5,2.4584]
[1718578651632,8.4082,150.52,150.49,2.4585]
[1718578651817,2.4583,150.51,150.48,24.5868]
[1718578652130,5.95,150.51,150.49,7.3758]
[1718578653116,5.95,150.51,150.5,2.4584]
[1718578653337,5.95,150.51,150.49,14.7515]